[Event "GCT Superbet Romania 2022"]
[Site "Bucharest"]
[Date "2022.05.11"]
[Round "6.3"]
[White "Dominguez Perez, Leinier"]
[Black "Deac, Bogdan-Daniel"]
[Result "1-0"]
[ECO "B90"]
[WhiteElo "2753"]
[BlackElo "2671"]
[Annotator "TA"]
[PlyCount "133"]
[EventDate "2022.05.05"]
[EventType "tourn"]
[EventCountry "ROU"]
[SourceTitle "playchess.com"]
[Source "ChessBase"]
[SourceQuality "1"]
[TimeControl "40/5400+30:1800+30"]

{[%evp 15,133,12,24,21,23,20,23,22,21,15,22,14,32,16,39,6,8,-17,10,0,0,-7,0,-5,17,12,16,12,20,13,14,-44,-46,-89,-54,-133,-120,-112,-64,-53,-48,-39,-15,-20,-23,-33,-8,-8,-8,-8,0,0,0,0,0,0,0,0,60,0,0,-5,-10,-10,0,0,33,32,58,39,376,370,337,289,460,464,408,401,405,376,401,409,409,406,387,336,267,118,135,133,365,0,191,188,183,175,200,0,0,0,183,173,159,151,761,750,728,728,854,712,1175,955,1698,835,4718,1297,4775,4759,1393,743]} 1. e4 {[%emt 0:00:03]} c5 {[%emt 0:00:03]} 2. Nf3 {[%emt 0:00:06]} d6 {[%emt 0:00:04]} 3. d4 {[%emt 0:00:07]} cxd4 {[%emt 0:00:05]} 4. Nxd4 {[%emt 0:00:05]} Nf6 {[%emt 0:00:04]} 5. Nc3 {[%emt 0:00:07]} a6 {[%emt 0:00:03]} 6. Be3 {[%emt 0:00:06]} e5 {[%emt 0:00:18]} 7. Nb3 {[%emt 0:00:07]} Be6 {[%emt 0:00:06]} 8. f3 {[%emt 0:00:06]} h5 {[%emt 0:00:05]} 9. Nd5 {[%emt 0:00:35] B90: Sicilian Najdorf: Unusual White 6th moves, 6 Be3 Ng4 and 6 Be3 e5.} Bxd5 {[%emt 0:00:28]} 10. exd5 {[%emt 0:00:07]} Nbd7 {[%emt 0:00:03]} 11. Qd2 {[%emt 0:00:07] White has an edge.} g6 {[%emt 0:00:07]} 12. O-O-O {[%emt 0:00:08]} Nb6 {[%emt 0:00:23]} 13. Kb1 {[%emt 0:00:19]} Nbxd5 {[%emt 0:00:55]} 14. Bg5 {[%emt 0:00:09] aiming for Qxd5.} Be7 $1 {[%emt 0:00:07]} 15. a3 $5 {[%emt 0:01:42][%mdl 4] White has compensation. 15.Bd3 gains popularity. Exploring less charted territory.} Qc7 {[%emt 0:06:24] [#]} 16. g3 $146 {[%emt 0:04:47]} (16. c4 $5 {[%cal Rc4d5]} Nb6 17. Bxf6 Bxf6 18. Qxd6 Qxd6 19. Rxd6 $11) ({Predecessor:} 16. c4 Nb6 17. Bxf6 Bxf6 18. Qxd6 Qxd6 19. Rxd6 Na4 20. Rd5 {½-½ (20) Jose Queralto,D (2412)-Thomas,T (2301) ICCF email 2021}) 16... Rd8 {[%emt 0:26:53]} 17. Bd3 {[%emt 0:20:29]} Nb6 {[%emt 0:06:52]} 18. Rhe1 {[%emt 0:17:49]} d5 {[%emt 0:08:28]} 19. Qe2 {[%emt 0:05:01]} Nbd7 {[%emt 0:16:42]} (19... Nfd7 $5 {[%cal Re7g5]} 20. Bxe7 Kxe7 $15) 20. c4 {[%emt 0:01:40]} O-O {[%emt 0:06:04]} 21. cxd5 {[%emt 0:29:53]} Nxd5 {[%emt 0:01:37]} 22. Bh6 {[%emt 0:01:56]} Rfe8 {[%emt 0:00:37][%cal Oe7a3]} 23. Rc1 {[%emt 0:02:37]} ({White should play} 23. Qc2 $11) 23... Qd6 $15 {[%emt 0:10:23]} 24. h4 {[%emt 0:01:24] Against g5} b5 {[%emt 0:07:17]} 25. Nd2 {[%emt 0:05:38]} (25. Bc2 $15) 25... Nc5 $17 {[%emt 0:04:19][%cal Od5f4]} 26. Ne4 {[%emt 0:03:30]} Nxe4 {[%emt 0:01:01]} (26... Qb6 $17 {[%cal Od5f4] White must now prevent ...Nf4!} 27. Nxc5 Bxc5) 27. Bxe4 $15 {[%emt 0:00:02]} Qe6 {[%emt 0:01:00]} 28. Bc2 {[%emt 0:03:15] [#]} Bxa3 $1 {[%emt 0:01:14]} 29. Bb3 $1 {[%emt 0:00:50]} Bf8 {[%emt 0:01:57]} 30. Bg5 {[%emt 0:00:33] Threatens to win with Red1. This bishop pair is nice.} Rd6 {[%emt 0:01:13]} (30... Be7 $5 {[%cal Re7g5]}) 31. Red1 {[%emt 0:01:27] Hoping for Qe4.} Qf5+ {[%emt 0:00:34]} 32. Qe4 {[%emt 0:00:58]} Nb6 {[%emt 0:00:30]} 33. Rxd6 {[%emt 0:00:28]} Bxd6 {[%emt 0:00:08]} 34. Rc6 {[%emt 0:00:13][%csl LRb6,LRd6]} Nc8 {[%emt 0:00:42]} 35. Rxa6 {[%emt 0:00:08]} Kg7 {[%emt 0:00:22]} 36. Rc6 $40 {[%emt 0:01:02][%mdl 128] White attacks.} Qd7 {[%emt 0:00:42]} (36... f6 $11 37. Bd2 Bb8) 37. Qd5 {[%emt 0:00:32]} (37. g4 $14) 37... e4 {[%emt 0:00:33]} 38. Be3 {[%emt 0:00:52]} exf3 {[%emt 0:00:34]} 39. Bd4+ {[%emt 0:00:02]} f6 {[%emt 0:00:31]} 40. Qxf3 {[%emt 0:00:00]} Rf8 {[%emt 0:00:00]} 41. Qd5 {[%emt 0:05:21]} Qe7 {[%emt 0:12:31]} 42. Qe6 {[%emt 0:17:21]} Qd8 $2 {[%emt 0:01:11][%mdl 8192] [#]} (42... Bxg3 $14 43. Bc5 (43. Rxc8 Qxe6 44. Bxe6 Rxc8 $14) 43... Qxe6 44. Bxe6 (44. Bxf8+ Kxf8 45. Bxe6 Nd6 $15) 44... Re8) 43. Rxc8 $1 $18 {[%emt 0:06:16][%mdl 576] Deflection} Qxc8 {[%emt 0:00:11]} 44. Qxd6 {[%emt 0:00:02]} Qd8 {[%emt 0:00:28] [#] Inhibits Qe7+.} (44... Qf5+ $142 45. Kc1 (45. Bc2 Qf1+ 46. Ka2 Ra8+ 47. Ba7 Rxa7+ $19) 45... Qc8+ 46. Bc2 Qd8) 45. Qe6 $1 {[%emt 0:01:19]} Kh7 {[%emt 0:06:17]} 46. Bd5 {[%emt 0:02:37]} Qe8 {[%emt 0:00:50]} 47. Qb6 {[%emt 0:00:28]} Qd7 {[%emt 0:13:04]} 48. Be6 {[%emt 0:02:06]} Qd8 {[%emt 0:00:00]} 49. Qa7+ {[%emt 0:00:00]} Kh8 {[%emt 0:00:00]} 50. Ka2 {[%emt 0:00:15]} Qd6 {[%emt 0:00:00]} 51. Bb3 {[%emt 0:00:32]} (51. Qd7 $1 $18 {[%cal Rd7d6] is the precise move to win.} Qxd7 52. Bxd7) 51... Qc6 $16 {[%emt 0:00:00]} 52. Bc3 $1 {[%emt 0:00:33]} Qf3 $2 {[%emt 0:00:32]} (52... Re8 $16) 53. Be6 $2 {[%emt 0:00:38]} (53. Ka3 $18) 53... b4 $2 {[%emt 0:01:02]} (53... Re8 $11 54. Bb3 b4) 54. Bd4 $18 {[%emt 0:00:07]} ({Don't go for} 54. Bxb4 $2 Ra8 55. Qxa8+ Qxa8+ $19) 54... Rd8 {[%emt 0:01:13] [#]} 55. Bc4 $1 {[%emt 0:00:49]} Rf8 {[%emt 0:00:41]} 56. Be6 $2 {[%emt 0:00:30]} (56. b3 $18 {Qe7 is the strong threat.} Rd8 {[#]} 57. Bd3 $1) 56... Rd8 $11 {[%emt 0:00:14]} 57. Bc4 $2 {[%emt 0:00:27]} (57. Qe7 $11 Ra8+ 58. Ba7) 57... Rf8 $1 $18 {[%emt 0:00:18]} 58. Qe7 {[%emt 0:00:36] Prevents Re8. Dancing on a razor blade.} Ra8+ {[%emt 0:00:17]} 59. Ba7 {[%emt 0:00:01]} Qc6 $2 {[%emt 0:01:10]} (59... Qd1 $16) 60. Kb3 {[%emt 0:00:13] White is clearly winning.} Rc8 {[%emt 0:00:31]} 61. Qe6 {[%emt 0:00:45] Active counter play!} Qxe6 {[%emt 0:00:29]} 62. Bxe6 {[%emt 0:00:02]} Rd8 {[%emt 0:00:28]} 63. Kxb4 {[%emt 0:00:40]} Rd3 {[%emt 0:00:07]} 64. Bb8 {[%emt 0:00:47]} (64. Kc4 $142 Rd1 65. Bd4) 64... Kg7 {[%emt 0:00:05]} 65. Kc4 {[%emt 0:00:29]} (65. Kc5 $142 g5 66. b4) 65... Re3 {[%emt 0:00:22]} 66. Bd5 {[%emt 0:00:21]} Re8 {[%emt 0:00:35]} 67. Bf4 {[%emt 0:01:02] Weighted Error Value: White=0.19 (very precise) /Black=0.36} 1-0

[Event "GCT Superbet Romania 2022"]
[Site "Bucharest"]
[Date "2022.05.11"]
[Round "6.4"]
[White "Caruana, Fabiano"]
[Black "Nepomniachtchi, Ian"]
[Result "1/2-1/2"]
[ECO "C42"]
[WhiteElo "2786"]
[BlackElo "2773"]
[Annotator "TA"]
[PlyCount "79"]
[EventDate "2022.05.05"]
[EventType "tourn"]
[EventCountry "ROU"]
[SourceTitle "playchess.com"]
[Source "ChessBase"]
[SourceQuality "1"]
[TimeControl "40/5400+30:1800+30"]

{[%evp 14,79,38,38,35,27,31,0,3,0,0,0,4,0,4,-24,-32,-29,-28,-25,-19,-34,-21,-27,-22,-22,-19,-54,-27,-103,-30,-28,0,0,0,0,0,0,0,0,0,0,0,0,0,0,0,0,0,0,0,0,0,0,0,0,0,0,0,0,0,0,0,0,0,0,0,0]} 1. e4 {[%emt 0:00:04]} e5 {[%emt 0:00:06]} 2. Nf3 {[%emt 0:00:04]} Nf6 {[%emt 0:00:04][%cal Bg8f6,Bf6e4,Be4d6,Bd6f5][%mdl 32]} 3. Nxe5 {[%emt 0:00:13]} d6 {[%emt 0:00:05]} 4. Nf3 {[%emt 0:00:05]} Nxe4 {[%emt 0:00:05]} 5. d4 {[%emt 0:00:05]} d5 {[%emt 0:00:05]} 6. Bd3 {[%emt 0:00:04]} Nc6 {[%emt 0:00:36]} 7. O-O {[%emt 0:02:24]} Be7 {[%emt 0:00:04]} 8. Nbd2 $1 {[%emt 0:01:09][%cal Bb1d2,Bd2b3,Bb3c5][%mdl 4] is more profitable than 8.c4 at the moment.} Bf5 {[%emt 0:01:58] C42: Petroff Defence: 3 Nxe5 and unusual White 3rd moves.} 9. Qe2 {[%emt 0:08:01][%cal Rd2e4]} Nd6 {[%emt 0:03:43]} 10. Bxf5 {[%emt 0:04:27]} Nxf5 {[%emt 0:00:09]} 11. Qd3 {[%emt 0:02:43]} Qd7 {[%emt 0:00:16]} 12. Nb3 {[%emt 0:09:27]} O-O {[%emt 0:00:44] [#]} 13. Nc5 $146 {[%emt 0:15:53]} ({Predecessor:} 13. Bf4 Rfe8 14. Rfe1 g6 15. c3 b6 16. Nbd2 f6 17. Re2 Nd8 18. Rae1 Nf7 19. h3 {½-½ (42) Silva Sanchez,C (2385)-Solomon,S (2250) Thessaloniki 1984}) 13... Qc8 {[%emt 0:05:40]} 14. Bf4 {[%emt 0:14:30][%cal Bc1f4,Bf4g5,Bg5d2][%mdl 32] [#]} Nfxd4 $1 {[%emt 0:02:30]} 15. Nxd4 {[%emt 0:00:06]} Bxc5 {[%emt 0:00:04]} 16. Nb3 {[%emt 0:08:20]} Bb6 {[%emt 0:04:29]} 17. Qxd5 {[%emt 0:01:07]} Qg4 {[%emt 0:00:10]} 18. Qg5 {[%emt 0:00:12]} Qxg5 {[%emt 0:00:09]} (18... Qe2 {with more complications.} 19. Bd2 Qe4 20. Bc3 f6) 19. Bxg5 {[%emt 0:00:04]} Rfe8 {[%emt 0:00:13]} 20. Rfe1 {[%emt 0:07:05] Inhibits Re2.} Nb4 {[%emt 0:02:07]} 21. Rxe8+ {[%emt 0:04:03]} Rxe8 {[%emt 0:00:23]} 22. Bd2 $1 {[%emt 0:00:03]} Nxc2 {[%emt 0:20:27]} 23. Rc1 {[%emt 0:00:07] The position is equal.} Re2 {[%emt 0:00:16][%cal Oe2f2]} 24. Rxc2 {[%emt 0:00:12] And now a4 would win.} Rxf2 {[%emt 0:00:06]} 25. Nc5 {[%emt 0:00:14]} Bxc5 {[%emt 0:00:41]} 26. Rxc5 {[%emt 0:00:06]} Rxd2 {[%emt 0:00:04]} 27. Rxc7 $11 {[%emt 0:00:04][%mdl 4096] [#] Endgame Intending Rc8+ and mate. KR-KR} h5 {[%emt 0:00:40]} 28. Rxb7 {[%emt 0:00:05]} h4 {[%emt 0:00:19]} 29. a4 {[%emt 0:01:33]} a5 {[%emt 0:00:10]} 30. Rb5 {[%emt 0:00:29]} f6 {[%emt 0:00:22]} 31. h3 {[%emt 0:01:03]} Kf7 {[%emt 0:00:28]} 32. b3 {[%emt 0:00:56]} Rb2 {[%emt 0:00:09]} 33. Rxa5 {[%emt 0:01:02] Black must now prevent Rb5.} Rxb3 {[%emt 0:00:05]} 34. Rb5 {[%emt 0:00:10]} Ra3 {[%emt 0:00:09]} 35. Rb4 {[%emt 0:00:39]} g5 {[%emt 0:00:09]} 36. Kf2 {[%emt 0:00:03]} Kg6 {[%emt 0:00:17]} 37. Rc4 {[%emt 0:00:08]} Kf5 {[%emt 0:00:17]} 38. Rb4 {[%emt 0:00:09]} Kg6 {[%emt 0:00:04]} 39. Rc4 {[%emt 0:00:02]} Kf5 {[%emt 0:00:04]} 40. Rb4 {[%emt 0:00:00] Weighted Error Value: White=0.08 (flawless) /Black=0.03 (flawless)} 1/2-1/2

[Event "GCT Superbet Romania 2022"]
[Site "Bucharest"]
[Date "2022.05.11"]
[Round "6.5"]
[White "Mamedyarov, Shakhriyar"]
[Black "Firouzja, Alireza"]
[Result "1/2-1/2"]
[ECO "E39"]
[WhiteElo "2770"]
[BlackElo "2804"]
[Annotator "TA"]
[PlyCount "191"]
[EventDate "2022.05.05"]
[EventType "tourn"]
[EventCountry "ROU"]
[SourceTitle "playchess.com"]
[Source "ChessBase"]
[SourceQuality "1"]
[TimeControl "40/5400+30:1800+30"]

{[%evp 34,191,0,0,0,0,0,0,0,0,0,8,7,-10,0,6,35,24,70,0,0,0,0,0,0,0,0,0,0,0,0,0,0,0,0,0,20,22,20,21,18,0,0,0,15,13,22,13,13,13,15,8,15,15,22,0,0,0,0,0,18,17,30,24,50,50,50,17,17,17,50,17,17,17,17,17,25,25,25,25,25,25,25,25,25,25,25,25,25,17,17,17,17,17,17,17,17,0,17,0,0,0,0,0,0,0,0,0,2,2,2,2,2,0,82,82,82,82,82,82,82,82,82,82,82,82,82,82,82,0,82,0,82,82,82,82,82,82,82,82,82,82,82,82,82,10,10,10,256,0,0,0,0,0,0,0,0,0,0,0]} 1. d4 {[%emt 0:00:02]} Nf6 {[%emt 0:00:07]} 2. c4 {[%emt 0:00:05]} e6 {[%emt 0:00:09]} 3. Nc3 {[%emt 0:00:08]} Bb4 {[%emt 0:00:46]} 4. Qc2 {[%emt 0:00:14]} c5 {[%emt 0:06:57]} 5. dxc5 {[%emt 0:01:01]} O-O {[%emt 0:00:34]} 6. Nf3 {[%emt 0:01:47]} Na6 {[%emt 0:00:09]} 7. g3 {[%emt 0:00:14]} Nxc5 {[%emt 0:00:10]} 8. Bg2 {[%emt 0:00:07]} Nce4 {[%emt 0:04:44]} 9. O-O {[%emt 0:00:33]} Bxc3 {[%emt 0:00:44]} 10. bxc3 {[%emt 0:00:38]} Qc7 {[%emt 0:00:35]} 11. Nd4 {[%emt 0:14:23]} d5 {[%emt 0:00:42]} 12. cxd5 {[%emt 0:00:48]} exd5 {[%emt 0:00:08]} 13. Bf4 {[%emt 0:06:07]} Qc5 {[%emt 0:06:11]} 14. Rac1 {[%emt 0:11:29]} Bd7 {[%emt 0:06:42]} 15. Nb3 {[%emt 0:10:34]} Qe7 {[%emt 0:04:51]} 16. c4 {[%emt 0:06:25]} Rac8 {[%emt 0:11:07]} 17. Qd3 {[%emt 0:00:34]} dxc4 {[%emt 0:01:28]} 18. Rxc4 {[%emt 0:01:12]} Rxc4 {[%emt 0:00:19]} 19. Qxc4 {[%emt 0:00:02]} Rc8 {[%emt 0:00:14]} 20. Qd3 {[%emt 0:02:24]} Nc3 {[%emt 0:05:01]} 21. Nd4 {[%emt 0:00:06]} Qb4 {[%emt 0:01:19]} 22. Bf3 {[%emt 0:04:16]} Bh3 {[%emt 0:08:28]} 23. Ra1 {[%emt 0:07:37]} h6 {[%emt 0:16:04]} 24. Nf5 {[%emt 0:15:07]} Bxf5 {[%emt 0:09:03]} 25. Qxf5 {[%emt 0:00:03]} Re8 {[%emt 0:00:29]} (25... Qc4 $11) 26. Be3 {[%emt 0:04:23]} (26. Qd3 $14 Nce4 27. Rc1) 26... Qb2 $11 {[%emt 0:03:00]} 27. Re1 {[%emt 0:00:05]} Qxa2 {[%emt 0:02:40]} 28. Qc5 {[%emt 0:01:50]} Nfe4 $1 {[%emt 0:05:22]} 29. Qxa7 {[%emt 0:01:15]} Qxa7 {[%emt 0:00:29]} 30. Bxa7 {[%emt 0:00:02]} b5 {[%emt 0:00:35]} 31. Bd4 {[%emt 0:02:35]} Rd8 {[%emt 0:01:55]} 32. e3 {[%emt 0:01:57]} b4 {[%emt 0:00:12]} 33. Rc1 {[%emt 0:04:39]} Nd2 {[%emt 0:02:58]} 34. Bxc3 {[%emt 0:00:52]} bxc3 {[%emt 0:01:08]} 35. Bg4 {[%emt 0:02:26]} Ne4 {[%emt 0:01:51]} 36. Bf5 {[%emt 0:00:45]} Nd6 {[%emt 0:00:09]} 37. Bh3 {[%emt 0:01:01]} Ne4 {[%emt 0:00:12]} 38. Bf5 {[%emt 0:00:25]} Nd6 {[%emt 0:00:04]} 39. Bd3 {[%emt 0:00:28]} Rc8 {[%emt 0:00:21]} 40. Kf1 {[%emt 0:00:00]} f5 {[%emt 0:00:00]} 41. Ke2 {[%emt 0:00:21]} Kf7 {[%emt 0:02:36]} 42. Kd1 {[%emt 0:04:09]} Kf6 {[%emt 0:22:20]} 43. Ra1 {[%emt 0:06:43]} Ne4 {[%emt 0:03:28]} 44. f3 {[%emt 0:04:51]} (44. Bxe4 $5 fxe4 45. Kc2 $14) 44... Nf2+ {[%emt 0:05:00]} 45. Kc2 {[%emt 0:00:26]} Nxd3 {[%emt 0:00:04]} 46. Kxd3 {[%emt 0:00:06]} Ke5 {[%emt 0:01:12]} 47. Kc2 {[%emt 0:00:20]} Rc7 {[%emt 0:00:45]} 48. Ra3 {[%emt 0:00:15]} Rb7 {[%emt 0:00:26]} 49. Rxc3 {[%emt 0:00:42]} Ra7 {[%emt 0:00:22]} 50. Rc6 {[%emt 0:01:13]} Ra2+ {[%emt 0:00:31]} 51. Kd3 {[%emt 0:00:05]} Ra3+ {[%emt 0:00:06]} 52. Ke2 {[%emt 0:00:33]} Ra2+ {[%emt 0:00:04]} 53. Kf1 {[%emt 0:00:16]} Rxh2 {[%emt 0:01:16]} 54. Rg6 {[%emt 0:00:54]} h5 {[%emt 0:00:21]} 55. Rxg7 {[%emt 0:00:05]} Kf6 {[%emt 0:00:08]} 56. Rg8 {[%emt 0:00:55]} Kf7 {[%emt 0:00:15]} 57. Rh8 {[%emt 0:01:01]} Kg7 {[%emt 0:00:35]} 58. Kg1 $1 {[%emt 0:01:25]} Re2 {[%emt 0:00:10]} 59. Re8 {[%emt 0:00:04]} Kf7 {[%emt 0:00:10]} 60. Re5 {[%emt 0:00:03]} Kf6 {[%emt 0:00:10]} 61. f4 {[%emt 0:00:10]} Kg6 {[%emt 0:00:39]} 62. Re8 {[%emt 0:02:12]} Kg7 {[%emt 0:00:12]} 63. Re6 {[%emt 0:01:07]} Ra2 {[%emt 0:00:30]} 64. Re7+ {[%emt 0:00:55]} Kg6 {[%emt 0:00:09]} 65. Re6+ {[%emt 0:00:17]} Kg7 {[%emt 0:00:05]} 66. e4 {[%emt 0:00:57]} fxe4 {[%emt 0:00:10]} 67. Rxe4 {[%emt 0:00:03]} Kf6 {[%emt 0:02:09]} 68. Re5 {[%emt 0:00:14]} Kg6 {[%emt 0:00:33]} 69. Rg5+ {[%emt 0:00:15]} Kh6 $1 {[%emt 0:00:05]} 70. Kf1 {[%emt 0:00:37]} Rb2 {[%emt 0:00:48]} 71. Re5 {[%emt 0:00:12]} Kg6 {[%emt 0:01:47]} 72. Re2 {[%emt 0:00:07]} Rb4 {[%emt 0:00:06]} 73. Rh2 {[%emt 0:00:05]} Rb3 {[%emt 0:00:58] [#]} (73... Rb1+ $1 $11 {keeps the balance.} 74. Kg2 Rb2+ 75. Kh3 Rb1) 74. Kg2 $1 $16 {[%emt 0:00:06]} Rb2+ {[%emt 0:00:19]} 75. Kh3 {[%emt 0:00:03]} Rb1 {[%emt 0:00:14]} 76. Ra2 {[%emt 0:00:29]} Rh1+ {[%emt 0:00:16]} 77. Kg2 {[%emt 0:00:07]} Rb1 {[%emt 0:00:05]} 78. Ra6+ {[%emt 0:00:16]} Kg7 {[%emt 0:00:06]} 79. Ra3 {[%emt 0:00:21]} Kg6 {[%emt 0:00:14]} 80. Kf3 {[%emt 0:00:29]} Rf1+ {[%emt 0:01:19]} 81. Kg2 {[%emt 0:01:40]} Rb1 {[%emt 0:00:08]} 82. Ra6+ {[%emt 0:00:08]} Kg7 $1 {[%emt 0:00:18]} 83. Re6 {[%emt 0:00:12]} Ra1 {[%emt 0:00:29]} 84. Kf2 {[%emt 0:00:24]} Rb1 {[%emt 0:00:33]} 85. Re1 {[%emt 0:00:06]} Rb2+ {[%emt 0:00:52]} 86. Kf3 {[%emt 0:00:10]} Kf6 {[%emt 0:01:53]} 87. Re5 {[%emt 0:00:10]} Kg6 {[%emt 0:00:31]} 88. Re6+ {[%emt 0:00:41]} Kg7 {[%emt 0:00:15]} 89. f5 {[%emt 0:00:13]} (89. Re2 $16 Rb3+ 90. Kg2 (90. Re3 Rb2 $16)) 89... Rb4 $11 {[%emt 0:00:27]} 90. Re4 {[%emt 0:00:04]} Rb6 $2 {[%emt 0:00:35] [#]} (90... Rb8 $1 $11 {and Black has nothing to worry.}) 91. Rh4 $2 {[%emt 0:04:56]} (91. Kf4 $1 $18) 91... Kh6 $11 {[%emt 0:00:19]} 92. Kf4 {[%emt 0:00:09]} Rb4+ {[%emt 0:00:12]} 93. Ke5 {[%emt 0:00:06]} Rb5+ {[%emt 0:00:09]} 94. Kf4 {[%emt 0:00:05]} Rb4+ {[%emt 0:00:09]} 95. Ke5 {[%emt 0:00:06]} Rb5+ {[%emt 0:00:02]} 96. Kf4 {[%emt 0:00:04]} 1/2-1/2

[Event "GCT Superbet Romania 2022"]
[Site "Bucharest"]
[Date "2022.05.12"]
[Round "7.1"]
[White "Deac, Bogdan-Daniel"]
[Black "So, Wesley"]
[Result "1/2-1/2"]
[ECO "D27"]
[WhiteElo "2671"]
[BlackElo "2766"]
[Annotator "TA"]
[PlyCount "49"]
[EventDate "2022.05.05"]
[EventType "tourn"]
[EventCountry "ROU"]
[SourceTitle "playchess.com"]
[Source "ChessBase"]
[SourceQuality "1"]
[TimeControl "40/5400+30:1800+30"]

{[%evp 16,49,29,14,35,27,56,56,24,29,67,25,18,25,30,17,16,0,0,0,4,0,0,0,0,12,14,0,0,0,0,0,0,0,0,0]} 1. d4 {[%emt 0:00:02]} d5 {[%emt 0:02:33]} 2. Nf3 {[%emt 0:00:11]} Nf6 {[%emt 0:00:07]} 3. c4 {[%emt 0:00:02]} dxc4 {[%emt 0:00:28]} 4. e3 {[%emt 0:00:10]} e6 {[%emt 0:00:06]} 5. Bxc4 {[%emt 0:00:02]} a6 {[%emt 0:00:05]} 6. O-O {[%emt 0:00:06]} c5 {[%emt 0:00:04]} 7. b3 {[%emt 0:00:19]} cxd4 {[%emt 0:02:16]} 8. Nxd4 {[%emt 0:00:10]} Be7 {[%emt 0:00:07]} 9. Bb2 {[%emt 0:01:31]} O-O {[%emt 0:00:07] D27: Queen's Gambit Accepted: Classical main line: 7 e4!? and 7 a4.} 10. Be2 {[%emt 0:00:19]} b5 {[%emt 0:00:07]} 11. a4 {[%emt 0:02:41]} bxa4 {[%emt 0:01:34] White is slightly better.} 12. Rxa4 {[%emt 0:04:29]} Bb7 {[%emt 0:00:10]} 13. Bf3 {[%emt 0:01:47]} Bxf3 {[%emt 0:02:38]} 14. Qxf3 {[%emt 0:01:47] [#]} Ra7 $146 {[%emt 0:00:06]} ({Predecessor:} 14... Qd5 15. Nd2 Nbd7 16. Rfa1 Qxf3 17. gxf3 Nc5 18. Nc6 Rfe8 19. Nxe7+ Rxe7 20. Ra5 Rc7 {1-0 (53) Pacan Milej,K (2401)-Malek,J (2149) Pokrzywna 2021}) 15. Rc1 {[%emt 0:18:43]} Rc7 {[%emt 0:09:35] The position is equal.} 16. Rac4 {[%emt 0:06:29]} Rxc4 {[%emt 0:05:02]} 17. Rxc4 {[%emt 0:00:07]} Qd7 {[%emt 0:04:40]} 18. h3 {[%emt 0:06:31]} Rc8 {[%emt 0:15:32]} 19. Nd2 {[%emt 0:00:56]} Rxc4 {[%emt 0:04:56]} 20. Nxc4 {[%emt 0:01:05]} Qd5 {[%emt 0:00:02] Against Qa8} 21. Qg3 {[%emt 0:03:17]} Qb7 {[%emt 0:04:38]} ({Resist} 21... Nbd7 22. Qc7 $14) 22. Na5 {[%emt 0:09:31]} Qb6 {[%emt 0:03:10]} 23. Nc4 {[%emt 0:00:16]} Qb7 {[%emt 0:00:04]} 24. Na5 {[%emt 0:02:19]} Qb6 {[%emt 0:01:32]} 25. Nc4 {[%emt 0:00:26] Weighted Error Value: White=0.06 (flawless) /Black=0.02 (flawless)} 1/2-1/2

[Event "GCT Superbet Romania 2022"]
[Site "Bucharest"]
[Date "2022.05.12"]
[Round "7.2"]
[White "Aronian, Levon"]
[Black "Caruana, Fabiano"]
[Result "1/2-1/2"]
[ECO "C24"]
[WhiteElo "2765"]
[BlackElo "2786"]
[Annotator "TA"]
[PlyCount "51"]
[EventDate "2022.05.05"]
[EventType "tourn"]
[EventCountry "ROU"]
[SourceTitle "playchess.com"]
[Source "ChessBase"]
[SourceQuality "1"]
[TimeControl "40/5400+30:1800+30"]

{[%evp 12,51,37,2,14,0,0,13,37,0,0,0,6,28,29,0,0,0,0,0,0,0,0,0,0,0,0,0,0,0,0,0,0,0,0,0,40,0,0,0,0,0]} 1. e4 {[%emt 0:00:02]} e5 {[%emt 0:00:04]} 2. Bc4 {[%emt 0:00:05]} Nf6 {[%emt 0:00:28]} 3. d3 {[%emt 0:00:06]} c6 {[%emt 0:00:36]} 4. Nf3 {[%emt 0:00:05]} d5 {[%emt 0:00:07]} 5. Bb3 {[%emt 0:00:04]} Bb4+ {[%emt 0:00:25]} 6. Bd2 {[%emt 0:00:29]} Bxd2+ {[%emt 0:00:09]} 7. Nbxd2 {[%emt 0:01:03]} a5 {[%emt 0:03:38] [#] And now ...a4 would win. C24: Bishop's Opening: 2...Nf6.} 8. c3 {[%emt 0:00:33]} ({Avoid the trap} 8. Nxe5 $2 a4 9. Bxd5 cxd5 $19) (8. a3 Nbd7 9. O-O a4 10. Ba2 O-O 11. Re1 Re8 12. d4 exd4 13. exd5 Rxe1+ 14. Qxe1 cxd5 15. Rb1 Qb6 {0-1 (64) Aronian,L (2764)-Caruana,F (2816) Paris 2018}) 8... Nbd7 {[%emt 0:05:07]} 9. O-O {[%emt 0:05:14] [#]} dxe4 $146 {[%emt 0:12:40]} ({Predecessor:} 9... O-O 10. Re1 Re8 11. exd5 cxd5 12. Nf1 Qc7 13. Ne3 Nb6 14. a3 Ng4 15. Nf1 Nh6 {½-½ (40) Kribben,M (2660)-Hamarat,T (2551) ICCF email 2016}) 10. Ng5 {[%emt 0:01:54]} (10. dxe4 $5 {[%cal Rd2c4]} O-O 11. Nc4 $11) 10... O-O {[%emt 0:00:26]} 11. Ngxe4 {[%emt 0:00:04]} Nxe4 {[%emt 0:04:02]} 12. Nxe4 {[%emt 0:00:08]} Nf6 {[%emt 0:02:11]} 13. Ng3 {[%emt 0:00:19]} Re8 {[%emt 0:06:31]} 14. Re1 {[%emt 0:00:35]} Qd6 {[%emt 0:05:58]} 15. h3 {[%emt 0:16:17]} Be6 {[%emt 0:01:59]} 16. Ne4 {[%emt 0:00:15]} Nxe4 {[%emt 0:00:12]} 17. dxe4 {[%emt 0:00:03]} Rad8 {[%emt 0:01:54]} 18. Qxd6 {[%emt 0:01:15]} Rxd6 {[%emt 0:00:04]} 19. Rad1 {[%emt 0:00:22] Against Rd2} Red8 {[%emt 0:00:25]} 20. Rxd6 {[%emt 0:00:07]} Rxd6 {[%emt 0:00:03]} 21. Bxe6 {[%emt 0:00:06]} fxe6 $11 {[%emt 0:00:04] KR-KR} 22. Kf1 {[%emt 0:00:08]} Rd2 {[%emt 0:00:04]} 23. Re2 {[%emt 0:00:04]} Rd1+ {[%emt 0:00:04]} 24. Re1 {[%emt 0:00:03]} Rd2 {[%emt 0:00:04]} 25. Re2 {[%emt 0:00:04]} Rd1+ {[%emt 0:00:06]} 26. Re1 {[%emt 0:00:04] An uneventful encounter.  Weighted Error Value: White=0.05 (flawless) /Black=0.02 (flawless)} 1/2-1/2